[Event "Bangabandhu Premier Div League 2023-24"]
[Site "Dhaka"]
[Date "2024.02.05"]
[Round "5.12"]
[White "Manon, Reja Neer"]
[Black "Asif, Mahmud"]
[Result "1/2-1/2"]
[ECO "C67"]
[WhiteElo "2169"]
[BlackElo "1906"]
[Annotator "TA"]
[PlyCount "76"]
[EventDate "2024.02.01"]
[EventCountry "BAN"]
[SourceTitle "playchess.com"]
[Source "ChessBase"]
[SourceQuality "1"]
[TimeControl "40/5400+30:1800+30"]

{[%evp 17,76,23,31,7,28,12,14,8,18,-17,2,8,6,0,22,0,0,0,8,0,38,22,37,0,0,0,0,0,17,0,5,0,0,0,0,-12,-13,-25,0,0,0,8,8,-7,0,-51,-7,-114,-98,-103,-62,-106,-8,-8,-8,-9,-8,-195,-196,-191,-161]} 1. e4 {[%emt 0:02:38]} e5 {[%emt 0:00:13]} 2. Nf3 {[%emt 0:00:31]} Nc6 {[%emt 0:00:13]} 3. Bb5 {[%emt 0:00:20]} Nf6 {[%emt 0:00:26]} 4. O-O {[%emt 0:00:11]} Nxe4 {[%emt 0:00:06]} 5. d4 {[%emt 0:02:49]} Nd6 {[%emt 0:00:09]} 6. Bxc6 {[%emt 0:00:01]} dxc6 {[%emt 0:00:12]} 7. dxe5 {[%emt 0:00:01]} Nf5 {[%emt 0:00:15]} 8. Qxd8+ {[%emt 0:00:05]} Kxd8 {[%emt 0:00:09]} 9. Rd1+ {[%emt 0:00:01]} Ke8 {[%emt 0:00:13]} 10. h3 {[%emt 0:01:17]} h5 {[%emt 0:10:39]} 11. Bg5 {[%emt 0:06:06]} Be7 {[%emt 1:23:25] Repels Rd8+} 12. Nc3 {[%emt 0:06:08] The position is equal.} Be6 {[%emt 0:00:00]} 13. a4 {[%emt 0:02:19]} a5 {[%emt 0:00:00]} 14. Rd2 {[%emt 0:00:40]} Rd8 {[%emt 0:00:00] [#] ...Bxg5 is the strong threat.} 15. Rad1 {[%emt 0:00:22]} Rxd2 {[%emt 0:00:00]} 16. Rxd2 {[%emt 1:15:01]} Bxg5 {[%emt 0:00:00]} 17. Nxg5 {[%emt 0:00:00]} Ke7 {[%emt 0:00:00]} 18. Ne2 {[%emt 0:00:00]} Rh6 {[%emt 0:00:00]} 19. Nf4 {[%emt 0:00:00]} Bc8 {[%emt 0:04:00]} 20. Ne4 {[%emt 0:00:00]} h4 {[%emt 0:00:00]} 21. c3 {[%emt 0:00:00]} Rh8 {[%emt 0:00:00]} 22. Ng5 {[%emt 0:00:00]} Rh6 {[%emt 0:00:00]} 23. Re2 {[%emt 0:00:00]} b6 {[%emt 0:00:00]} 24. b4 {[%emt 0:00:00]} axb4 {[%emt 0:00:00]} 25. cxb4 {[%emt 0:00:00]} Nd4 {[%emt 0:00:00]} 26. Re4 {[%emt 0:00:00]} Ne6 {[%emt 0:03:30]} 27. Nf3 {[%emt 0:00:00]} Nxf4 {[%emt 0:00:00]} 28. Rxf4 $11 {[%emt 0:00:00][%mdl 4096] Endgame. KRB-KRN} Rh5 {[%emt 0:00:00]} 29. Rc4 {[%emt 0:00:00]} Bb7 {[%emt 0:00:00]} 30. a5 {[%emt 0:00:00]} c5 {[%emt 0:01:12]} 31. bxc5 {[%emt 0:00:00]} (31. axb6 $11 cxb6 32. bxc5) 31... Bxf3 {[%emt 0:00:37]} (31... bxa5 32. c6 Ba6 33. Ra4 $11) 32. gxf3 {[%emt 0:00:00]} (32. cxb6 $11 cxb6 33. gxf3 Rg5+ (33... Rxe5 34. axb6 Rb5 35. Rc7+ Ke6 36. b7 $14) (33... bxa5 34. Rc5 $11) 34. Kf1 (34. Rg4 $2 Rxg4+ 35. hxg4 bxa5 $19) 34... bxa5 35. f4) 32... bxa5 {[%emt 0:00:29] KR-KR} ({Much weaker is} 32... Rxe5 $6 33. cxb6 (33. Rxh4 $2 {loses.} bxa5 34. Rd4 Rxc5 $19) (33. axb6 cxb6 34. cxb6 Re1+ 35. Kh2 Rb1 $14) 33... cxb6 34. axb6 $11) 33. f4 {[%emt 0:00:00]} Rh6 {[%emt 0:00:35]} 34. c6 {[%emt 0:00:00] [#]} Rh8 {[%emt 0:00:05]} ({Black should try} 34... Ke6 $1 $17 {With the idea ...Rh8.} 35. Kf1 Rh8 (35... Kd5 36. Ra4 $17)) 35. Ra4 $1 {[%emt 0:00:00]} Ra8 {[%emt 0:00:05] Black wants to play ...Ke6.} 36. f5 {[%emt 0:00:00]} g6 {[%emt 0:00:34]} 37. Kg2 $2 {[%emt 0:00:00]} (37. fxg6 $11 fxg6 38. f4) 37... gxf5 $19 {[%emt 0:00:21]} 38. Kf3 {[%emt 0:00:44]} Ke6 {[%emt 0:00:20] Weighted Error Value: White=0.30/Black=0.14 (very precise) .  Loses game:     	White=1     	---        Mistake:       	White=2     	Black=1      Inaccurate:     	White=3     	Black=4      OK:         	White=6     	Black=11     Best:        	White=1     	Black=3      Strong:       	White=1     	---} 1/2-1/2

[Event "Bangabandhu Premier Div League 2023-24"]
[Site "Dhaka"]
[Date "2024.02.06"]
[Round "6.1"]
[White "Mohammad Fahad, Rahman"]
[Black "Hossain, Enamul"]
[Result "0-1"]
[ECO "E04"]
[WhiteElo "2418"]
[BlackElo "2372"]
[Annotator "TA"]
[PlyCount "94"]
[EventDate "2024.02.01"]
[EventCountry "BAN"]
[SourceTitle "playchess.com"]
[Source "ChessBase"]
[SourceQuality "1"]
[TimeControl "40/5400+30:1800+30"]

{[%evp 19,94,0,0,0,4,0,0,0,0,-64,-52,-57,-54,-62,-7,-32,-16,-13,-21,-8,-4,-2,0,-26,-20,-18,-16,-68,-30,-114,-122,-100,-81,-179,-93,-109,-104,-220,-189,-182,-199,-200,-196,-185,-155,-186,-102,-209,-213,-406,-227,-250,-246,-235,-123,-502,-502,-1533,-818,-1493,-1415,-1315,-1270,-1258,-1037,-1402,-1369,-1112,-970,-1435,-1351,-1836,-1770,-1768,-777,-777,-773]} 1. d4 {[%emt 0:00:08]} Nf6 {[%emt 0:00:30]} 2. c4 {[%emt 0:00:17]} e6 {[%emt 0:00:30]} 3. Nc3 {[%emt 0:00:43]} d5 {[%emt 0:00:37]} 4. Nf3 {[%emt 0:00:23]} a6 {[%emt 0:00:07]} 5. g3 {[%emt 0:12:24]} dxc4 {[%emt 0:02:27]} 6. Bg2 {[%emt 0:00:19]} Nc6 {[%emt 0:03:44]} 7. O-O {[%emt 0:02:10]} Rb8 {[%emt 1:26:05]} 8. e4 {[%emt 0:09:37]} Be7 {[%emt 0:00:30]} 9. Qe2 {[%emt 1:08:59] 9.d5 is more fashionable.} Nxd4 {[%emt 0:00:30] has lost popularity (9...b5). E04: Open Catalan: 5 Nf3.} 10. Nxd4 {[%emt 0:00:00]} Qxd4 {[%emt 0:00:00]} 11. Rd1 {[%emt 0:00:00]} Qc5 {[%emt 0:00:00]} 12. Be3 {[%emt 0:01:30]} Qa5 {[%emt 0:01:30]} 13. Qxc4 {[%emt 0:00:30]} O-O {[%emt 0:00:30]} 14. Bd2 $146 {[%emt 0:00:30]} (14. e5 $11 Nd7 15. Qe2) ({Predecessor:} 14. e5 Nd7 15. f4 b5 16. Qe2 b4 17. Ne4 Nb6 18. Rac1 Nd5 19. Ba7 Ra8 20. Bc5 Bxc5+ 21. Nxc5 {1-0 Helbich,J (2537)-Oliveira (2566) Champion's League 10/B1 email 2010 [1]}) 14... c6 {[%emt 0:00:30]} (14... b5 $5 15. Qe2 b4 $17) 15. Qe2 {[%emt 0:00:30]} Qc7 $1 {[%emt 0:00:30]} 16. Rac1 {[%emt 0:00:30]} e5 {[%emt 0:00:00]} (16... Rd8 $1 $15) 17. Nd5 $1 $11 {[%emt 0:00:30]} Nxd5 {[%emt 0:00:00]} 18. exd5 {[%emt 0:00:30]} c5 $1 {[%emt 0:01:30]} 19. b4 {[%emt 0:00:00]} b6 $1 {[%emt 0:00:00]} 20. Be3 {[%emt 0:01:00]} Bd6 {[%emt 0:01:00]} 21. bxc5 {[%emt 0:00:00]} bxc5 {[%emt 0:00:00]} 22. Qc4 {[%emt 0:01:00]} Bd7 {[%emt 0:01:00]} 23. Qxa6 {[%emt 0:00:30]} (23. Bxc5 $11 h6 24. Bxd6 Qxd6 25. Qc7) 23... Rb4 {[%emt 0:00:30]} 24. Qa3 {[%emt 0:00:30]} (24. Rb1 $11 Rfb8 25. Rxb4 Rxb4 26. Qd3) 24... Ra4 $17 {[%emt 0:00:30]} 25. Qc3 {[%emt 0:00:30]} Rc8 {[%emt 0:00:30]} 26. Rc2 {[%emt 0:00:30] [#]} (26. Qc2 $17) 26... h6 {[%emt 0:00:00]} ({Black should play} 26... c4 $1 $19 {...Ra3 would now be deadly.} 27. Bf1 Bf5) 27. Bf1 $17 {[%emt 0:00:30]} c4 {[%emt 0:01:00]} 28. Qb2 {[%emt 0:00:00]} (28. Rb1 $17) 28... Rb4 {[%emt 0:00:30]} 29. Qc1 {[%emt 0:01:00]} Ba4 {[%emt 0:00:00]} 30. Rc3 {[%emt 0:00:00]} Bxd1 {[%emt 0:00:00]} 31. Qxd1 {[%emt 0:01:00]} Qb7 {[%emt 0:01:30]} 32. Qg4 {[%emt 0:00:00]} Kf8 {[%emt 0:00:00]} (32... Rb1 $19 {...h5 is the strong threat.} 33. Rxc4 f5 34. Rxc8+ Qxc8) 33. Bd3 {[%emt 0:00:00]} (33. Qe4 $17) 33... Bc5 $1 $19 {[%emt 0:00:00]} (33... cxd3 $2 34. Rxc8+ $18) 34. Bf5 $2 {[%emt 0:00:00]} (34. Bc2 {keeps fighting.} Bxe3 35. Rxe3) 34... Rc7 {[%emt 0:01:30]} (34... Bxe3 $142 35. Rxe3 c3 (35... Qxd5 $2 36. Be4 $19) 36. Bxc8 c2) 35. Bxc5+ {[%emt 0:00:00]} Rxc5 {[%emt 0:00:00]} 36. d6 {[%emt 0:02:30]} Rd5 {[%emt 0:00:00]} (36... Rb6 $19 37. d7 Rd6) 37. d7 $2 {[%emt 0:00:00][%mdl 8192]} (37. Be4 $17 {was the crucial defense.} Rd4 38. Bxb7 Rxg4 39. Ra3) 37... Rxd7 $19 {[%emt 0:00:00]} 38. Rf3 {[%emt 0:00:03]} (38. Be4 $142 Rd4 39. Bxb7 Rxg4 40. h3) 38... Rd1+ $19 {[%emt 0:00:39]} 39. Kg2 {[%emt 0:00:02]} c3 {[%emt 0:00:48]} 40. Qh5 {[%emt 0:00:12]} Rd6 {[%emt 0:00:39]} 41. Kh3 {[%emt 0:32:13]} Qc7 {[%emt 0:31:24]} 42. Bc2 {[%emt 0:00:00]} Rd2 {[%emt 0:00:00]} 43. Bg6 {[%emt 0:00:00]} Rd7 {[%emt 0:00:00]} (43... Rxa2 $2 {loses.} 44. Rxf7+ $18 (44. Bxf7 Ra6 $17) (44. Bxf7 Ra6 $15)) 44. Bc2 {[%emt 0:01:30]} e4 {[%emt 0:00:00]} 45. Rf5 {[%emt 0:00:30]} Rd2 {[%emt 0:00:00]} 46. a3 {[%emt 0:00:00]} Rb8 {[%emt 0:00:00]} (46... Rb2 $142 47. Bxe4 Rxf2 48. Rxf2 Rxf2) 47. Bxe4 $19 {[%emt 0:00:00]} c2 {[%emt 0:00:00]} 0-1

[Event "Bangabandhu Premier Div League 2023-24"]
[Site "Dhaka"]
[Date "2024.02.06"]
[Round "6.1"]
[White "Swarnavo Choudhury"]
[Black "Rahman, Syed Mahfuzur"]
[Result "1/2-1/2"]
[ECO "B91"]
[WhiteElo "2056"]
[BlackElo "2087"]
[Annotator "TA"]
[PlyCount "113"]
[EventDate "2024.02.01"]
[EventCountry "BAN"]
[SourceTitle "playchess.com"]
[Source "ChessBase"]
[SourceQuality "1"]
[TimeControl "40/5400+30:1800+30"]

{[%evp 15,113,13,2,9,0,0,0,-43,-32,-48,-32,-75,-45,-45,26,-25,10,-53,-12,0,0,0,0,-6,-17,-19,17,14,11,0,11,33,51,0,15,0,0,0,0,-41,-41,-34,0,0,0,-45,-35,-138,-92,-105,-113,-109,-94,-121,-84,-88,-8,-10,-6,-6,-2,-4,-7,-7,-7,-7,0,0,0,0,0,0,0,0,0,-6,0,0,0,0,0,0,0,0,0,0,0,0,0,0,0,-3,-3,-3,0,-3,-3,-8,-10,-10]} 1. e4 {[%emt 0:00:07]} c5 {[%emt 0:00:51]} 2. Nf3 {[%emt 0:00:12]} d6 {[%emt 0:00:54]} 3. d4 {[%emt 0:00:08]} cxd4 {[%emt 0:00:02]} 4. Nxd4 {[%emt 0:00:06]} Nf6 {[%emt 0:00:03]} 5. Nc3 {[%emt 0:00:08]} a6 {[%emt 0:00:02]} 6. g3 {[%emt 0:00:06]} e5 {[%emt 0:00:28]} 7. Nde2 {[%emt 0:00:06]} Be7 {[%emt 0:00:48]} 8. Bg2 {[%emt 0:00:06]} b5 {[%emt 0:02:41]} 9. a4 {[%emt 0:02:25]} b4 {[%emt 0:00:32]} 10. Nd5 {[%emt 0:00:17]} Nxd5 {[%emt 0:00:56]} 11. exd5 {[%emt 0:01:44]} (11. Qxd5 $5 Ra7 $8 12. Be3 $11) 11... O-O {[%emt 0:08:24]} 12. O-O {[%emt 0:00:39]} Nd7 {[%emt 0:09:02]} 13. f4 {[%emt 0:04:44]} Qb6+ {[%emt 0:02:20]} 14. Kh1 {[%emt 0:00:12]} exf4 {[%emt 0:02:45]} (14... a5 $15) 15. Bxf4 {[%emt 0:01:15]} (15. a5 $142 Qc7 16. Bxf4) 15... Bf6 {[%emt 0:00:32]} 16. c3 {[%emt 0:02:34]} ({White should try} 16. a5 $11 Qc5 17. c3) 16... Ne5 {[%emt 0:07:32]} 17. Qd4 {[%emt 0:17:23]} Rb8 {[%emt 0:32:09]} 18. Qxb6 {[%emt 0:05:57]} Rxb6 {[%emt 0:00:01]} 19. a5 {[%emt 0:00:15]} Rb7 {[%emt 0:00:02]} 20. Nd4 {[%emt 0:00:43]} Bd7 {[%emt 0:05:31]} 21. Nc6 {[%emt 0:04:28]} bxc3 {[%emt 0:02:37]} 22. bxc3 {[%emt 0:00:39]} Rb3 {[%emt 0:01:57]} 23. Bxe5 {[%emt 0:08:40]} dxe5 {[%emt 0:01:15]} 24. Rfc1 {[%emt 0:08:40]} (24. c4 $14) 24... Re8 {[%emt 0:06:28]} 25. Rab1 {[%emt 0:05:21]} Rxb1 {[%emt 0:01:50]} 26. Rxb1 {[%emt 0:00:05]} e4 {[%emt 0:00:02][%cal Og8f8]} 27. Re1 {[%emt 0:00:45]} e3 {[%emt 0:02:14]} 28. Nd4 $1 {[%emt 0:00:30]} Rc8 {[%emt 0:08:51]} 29. Nc6 {[%emt 0:00:51]} Re8 {[%emt 0:00:02]} 30. Nd4 $1 {[%emt 0:00:06]} Bd8 {[%emt 0:00:02]} 31. Nb3 {[%emt 0:05:29]} ({White should play} 31. Nc6 $15 Bf6) 31... Ba4 {[%emt 0:02:07]} (31... e2 $142 32. Bf3 Re3 33. Bxe2 g6 (33... Rxc3 34. Rb1 $17)) 32. Nc5 {[%emt 0:03:34]} Bb5 {[%emt 0:00:16]} 33. d6 {[%emt 0:01:16]} e2 {[%emt 0:03:08]} 34. d7 {[%emt 0:01:24]} Re7 {[%emt 0:00:14]} (34... Bxa5 $2 35. dxe8=Q+ (35. dxe8=R+ Bxe8 36. Rxe2 Kf8 $18) 35... Bxe8 36. Rxe2 $18 (36. Nxa6 Bxc3 37. Rxe2 Kf8 $18)) 35. Bf3 {[%emt 0:00:58]} Bxd7 {[%emt 0:00:50]} ({Of course not} 35... Bxa5 36. Nb7 $11) (35... Re3 $17 36. Kg2 Kf8 (36... Bxa5 37. Nb7 $16)) 36. Nxd7 $11 {[%emt 0:00:53] The position is equal.} Rxd7 {[%emt 0:00:02]} 37. Rxe2 $17 {[%emt 0:00:16][%cal Re2e8][%mdl 4096] [#] Endgame. KRB-KRB} g6 {[%emt 0:00:34]} ({Weaker is} 37... Bxa5 38. Re8#) 38. c4 {[%emt 0:00:38]} Bxa5 {[%emt 0:00:43]} 39. Ra2 {[%emt 0:00:21]} Bb4 {[%emt 0:00:37]} 40. Rxa6 {[%emt 0:00:16]} Kf8 {[%emt 0:00:32]} 41. Rb6 {[%emt 0:30:49]} Ba3 {[%emt 0:30:21]} 42. Rb3 {[%emt 0:00:10]} Bd6 {[%emt 0:00:22]} 43. Rd3 {[%emt 0:00:14] [#] Strongly threatening c5.} Ke7 {[%emt 0:00:07]} 44. Re3+ {[%emt 0:01:05]} Kd8 {[%emt 0:00:51]} 45. Rd3 {[%emt 0:02:09] aiming for Bc6.} Ke7 {[%emt 0:00:17]} 46. Re3+ {[%emt 0:00:05]} Kf6 {[%emt 0:01:36]} 47. Rd3 {[%emt 0:00:19] Threatens to win with c5.} Ke6 {[%emt 0:00:00]} 48. Kg2 {[%emt 0:02:13]} Ra7 {[%emt 0:00:23]} 49. Bd5+ {[%emt 0:00:41]} Ke5 {[%emt 0:00:18]} 50. Rd2 {[%emt 0:00:39]} Bb4 {[%emt 0:00:00]} 51. Re2+ {[%emt 0:00:00]} Kd4 {[%emt 0:00:00]} 52. Re4+ {[%emt 0:00:00]} Kd3 {[%emt 0:02:19]} 53. Rf4 {[%emt 0:00:00]} f5 {[%emt 0:00:00]} 54. h3 {[%emt 0:00:00]} Bd6 {[%emt 0:00:00]} 55. Rf3+ {[%emt 0:00:00]} Kd4 {[%emt 0:00:00]} 56. Rf1 {[%emt 0:00:00]} Ra2+ {[%emt 0:00:00]} 57. Rf2 {[%emt 0:00:00] Weighted Error Value: White=0.12 (very precise) /Black=0.14 (very precise) .  Mistake:       	White=4     	Black=3      Inaccurate:     	White=3     	Black=5      OK:         	White=19    	Black=17     Best:        	White=5     	Black=1      Strong:       	White=2     	---} 1/2-1/2

[Event "Bangabandhu Premier Div League 2023-24"]
[Site "Dhaka"]
[Date "2024.02.06"]
[Round "6.2"]
[White "Saiful Islam, Chowdhury"]
[Black "Puranik, Abhimanyu"]
[Result "0-1"]
[ECO "C50"]
[WhiteElo "2130"]
[BlackElo "2645"]
[Annotator "TA"]
[PlyCount "84"]
[EventDate "2024.02.01"]
[EventCountry "BAN"]
[SourceTitle "playchess.com"]
[Source "ChessBase"]
[SourceQuality "1"]
[TimeControl "40/5400+30:1800+30"]

{[%evp 12,84,13,4,11,8,25,14,8,14,17,0,0,0,6,0,0,14,0,-40,-22,-37,0,0,0,-68,-59,-78,-70,-69,-78,-103,-102,-109,-110,-112,-113,-134,-76,-135,-131,-198,-158,-205,-155,-189,-158,-241,-232,-218,-214,-266,-243,-348,-345,-344,-346,-334,-344,-331,-315,-327,-239,-340,-286,-444,-447,-977,-669,-1540,-1495,-29976,-29977,-29983,-29984]} 1. e4 {[%emt 0:00:27]} e5 {[%emt 0:00:15]} 2. Nf3 {[%emt 0:00:44]} Nc6 {[%emt 0:00:12]} 3. Bc4 {[%emt 0:04:02]} Nf6 {[%emt 0:00:13]} 4. d3 {[%emt 0:00:10]} Bc5 {[%emt 0:00:15]} 5. Nc3 {[%emt 0:00:34]} h6 {[%emt 0:01:49]} 6. Be3 {[%emt 0:02:39]} Bb4 {[%emt 0:02:04]} 7. O-O {[%emt 0:01:33]} Bxc3 {[%emt 0:00:03]} 8. bxc3 {[%emt 0:00:18]} d6 {[%emt 0:01:18]} 9. Rb1 {[%emt 0:02:08]} O-O {[%emt 0:00:11] The position is equal.} 10. h3 {[%emt 0:00:30]} Re8 {[%emt 1:29:10]} 11. Re1 {[%emt 0:05:14]} Na5 {[%emt 0:00:00]} 12. Bb3 {[%emt 1:18:11]} a6 {[%emt 0:00:00]} 13. c4 {[%emt 0:00:30]} b5 {[%emt 0:00:00]} 14. Bd2 {[%emt 0:00:30]} c5 {[%emt 0:02:00]} 15. cxb5 {[%emt 0:00:00]} axb5 {[%emt 0:00:30]} 16. c4 {[%emt 0:00:00]} bxc4 {[%emt 0:00:30]} 17. Bxa5 {[%emt 0:00:00]} Qxa5 {[%emt 0:00:30]} 18. dxc4 {[%emt 0:02:00]} (18. Bxc4 $11 Qc7 19. Nd2) 18... Ra6 {[%emt 0:00:30]} 19. Nd2 {[%emt 0:00:30]} Nh7 {[%emt 0:00:30]} 20. Re3 {[%emt 0:00:30]} Ng5 {[%emt 0:00:30]} 21. Nf1 {[%emt 0:00:00]} Ne6 {[%emt 0:00:00]} 22. Ng3 {[%emt 0:01:00]} Nd4 {[%emt 0:01:00]} 23. Qd3 {[%emt 0:00:00]} Qd8 {[%emt 0:00:00]} 24. Ne2 {[%emt 0:01:00]} g6 {[%emt 0:01:00] Black has more active pieces.} ({Black should play} 24... f5 25. Qd1 f4) 25. Nxd4 {[%emt 0:00:00]} (25. Rf1 $142) 25... exd4 $17 {[%emt 0:00:30]} ({Resist} 25... cxd4 26. Rg3 $17) 26. Rg3 {[%emt 0:01:00]} (26. Re2 $17) 26... Qf6 {[%emt 0:00:30]} 27. Rb2 {[%emt 0:00:00]} (27. Re1 $17) 27... Ra7 {[%emt 0:00:30]} 28. Re2 {[%emt 0:01:00]} Bb7 {[%emt 0:00:30]} 29. f3 {[%emt 0:00:00]} (29. Qb1 $17) 29... Bc6 {[%emt 0:00:00]} 30. Qd2 {[%emt 0:00:00]} Kg7 {[%emt 0:00:00]} 31. Rg4 {[%emt 0:01:30]} Re5 {[%emt 0:00:00]} 32. h4 {[%emt 0:00:30]} (32. Bd1 {was called for.}) 32... Bd7 $19 {[%emt 0:02:00]} 33. Rf4 {[%emt 0:00:00]} Qe7 {[%emt 0:00:00] ...g5 would now be deadly.} 34. Qe1 {[%emt 0:01:00]} Ra8 {[%emt 0:01:00]} 35. Qg3 {[%emt 0:00:00]} Be6 {[%emt 0:00:00]} 36. Re1 {[%emt 0:00:03]} f6 {[%emt 0:00:00]} 37. Kf2 {[%emt 0:00:36]} (37. h5 $142 Rxh5 38. Rh4 Rxh4 39. Qxh4) 37... Qf7 {[%emt 0:00:00]} 38. Rh1 {[%emt 0:00:24]} (38. Rb1 $142) 38... Bxc4 {[%emt 0:00:00]} 39. h5 {[%emt 0:00:50]} (39. Rb1 $142 Bxb3 40. axb3) 39... g5 {[%emt 0:00:00]} 40. Rf5 {[%emt 0:00:29] White is weak on the dark squares} Bxb3 {[%emt 0:00:00]} 41. axb3 {[%emt 0:30:20]} Ra2+ {[%emt 0:20:28]} 42. Kg1 {[%emt 0:00:16]} Ra1+ {[%emt 0:00:11] Weighted Error Value: White=0.77/Black=0.33.  Mistake:       	White=9     	Black=1      Inaccurate:     	White=2     	Black=2      OK:         	White=9     	Black=9      Best:        	White=1     	---} 0-1

[Event "Bangabandhu Premier Div League 2023-24"]
[Site "Dhaka"]
[Date "2024.02.06"]
[Round "6.2"]
[White "Md Anisur Rahaman"]
[Black "Sanket Chakravarty"]
[Result "0-1"]
[ECO "D24"]
[WhiteElo "1762"]
[BlackElo "2361"]
[Annotator "TA"]
[PlyCount "68"]
[EventDate "2024.02.01"]
[EventCountry "BAN"]
[SourceTitle "playchess.com"]
[Source "ChessBase"]
[SourceQuality "1"]
[TimeControl "40/5400+30:1800+30"]

{[%evp 9,68,7,-1,0,-20,-115,-104,-138,-145,-134,-141,-135,-141,-137,-131,-131,-131,-126,-128,-147,-139,-189,-166,-228,-227,-304,-300,-281,-286,-299,-285,-402,-384,-518,-385,-380,-366,-401,-385,-422,-422,-423,-420,-450,-415,-432,-433,-446,-441,-424,-394,-1004,-985,-1131,-1131,-29981,-29982,-29982,-29983,-29985,-29986]} 1. d4 {[%emt 0:08:38]} d5 {[%emt 0:00:27]} 2. c4 {[%emt 0:00:27]} e6 {[%emt 0:00:15]} 3. Nc3 {[%emt 0:01:02]} a6 {[%emt 0:00:26]} 4. Nf3 {[%emt 0:00:50]} Nf6 {[%emt 0:01:03]} 5. Bg5 {[%emt 0:01:40]} dxc4 {[%emt 0:03:13]} 6. e4 {[%emt 0:01:36]} b5 {[%emt 0:01:35]} 7. a3 {[%emt 0:06:17]} (7. e5 $11 {keeps the balance.} h6 8. Bxf6 gxf6 9. a4) 7... Bb7 $17 {[%emt 0:01:59][%cal Ob8d7]} 8. Be2 {[%emt 0:04:06] Black is better.} Be7 {[%emt 0:01:26]} (8... Bxe4 $2 9. Nxe4 Nbd7 10. b3 $18) 9. e5 {[%emt 0:01:43]} Nd5 {[%emt 0:00:48]} 10. Bxe7 {[%emt 0:00:35]} Qxe7 {[%emt 0:00:13]} 11. Qd2 {[%emt 0:03:45]} Nxc3 {[%emt 0:02:27]} 12. bxc3 {[%emt 0:00:14]} Nd7 {[%emt 0:00:36]} 13. O-O {[%emt 0:05:07]} O-O {[%emt 0:01:09]} 14. Rfb1 {[%emt 0:08:12]} Nb6 {[%emt 0:01:58]} 15. Qc2 {[%emt 0:04:55]} (15. Qe3 $17) 15... h6 {[%emt 0:02:42]} 16. Nd2 {[%emt 0:02:37]} (16. a4 {might work better.}) 16... c5 $19 {[%emt 0:04:07]} 17. Bf3 {[%emt 0:07:01]} Bxf3 {[%emt 0:01:15]} 18. Nxf3 {[%emt 0:01:12]} Rfd8 {[%emt 0:00:40]} 19. Qe4 {[%emt 0:02:12]} Rac8 {[%emt 0:01:07]} 20. dxc5 {[%emt 0:03:14]} (20. Ne1 {was called for.}) 20... Qxc5 {[%emt 0:00:33]} 21. g4 {[%emt 0:03:26]} Qc6 {[%emt 0:03:17]} 22. Qxc6 {[%emt 0:03:08]} Rxc6 {[%emt 0:00:14]} 23. Rd1 {[%emt 0:00:12]} Rd3 {[%emt 0:00:39]} 24. Nd4 {[%emt 0:00:38]} Rc5 {[%emt 0:00:30]} 25. Rac1 {[%emt 0:02:57]} Na4 {[%emt 0:02:44]} (25... Rxe5 26. Rxd3 cxd3 27. Rd1) 26. Kf1 {[%emt 0:04:53]} Nxc3 {[%emt 0:06:49]} 27. Rxd3 {[%emt 0:01:11]} cxd3 {[%emt 0:00:07][%mdl 4096] Endgame. KRN-KRN} 28. Nb3 {[%emt 0:01:29]} Rc4 {[%emt 0:00:12]} ({Worse is} 28... Rxe5 29. Rxc3 Rd5 30. Rc5 $16) 29. Nd2 {[%emt 0:00:08]} Ne4 {[%emt 0:00:21]} 30. Nxc4 {[%emt 0:01:42]} (30. Rd1) 30... bxc4 {[%emt 0:01:35]} 31. f3 {[%emt 0:00:35]} d2 {[%emt 0:01:28]} ({Not} 31... Nd2+ $2 32. Kf2 $18) 32. Rb1 {[%emt 0:02:36] [#]} c3 $1 {[%emt 0:01:03] Black mates.} 33. Ke2 {[%emt 0:07:24]} c2 {[%emt 0:00:09]} 34. Rd1 {[%emt 0:00:24]} Nc3+ {[%emt 0:00:20] White did not feel at home in the position after the opening.   Weighted Error Value: White=0.66/Black=0.08 (flawless) .  Mistake:       	White=5     	---        Inaccurate:     	White=3     	---        OK:         	White=7     	Black=13     Best:        	---       	Black=1} (34... c1=B 35. fxe4 g6 36. a4 $18) 0-1